fUST/lending_fUST_20250217
["ID","MTS","AMOUNT","RATE_DAILY","PERIOD"]
[353364716,1739800233060,-500.0,0.00010958,2]
[353364718,1739800233069,-500.0,0.00010958,2]
[353364719,1739800233078,-557.04,0.00010958,2]
[353364720,1739800233088,-500.0,0.00010958,2]
[353364722,1739800233097,-500.0,0.00010958,2]
[353364723,1739800233107,-500.0,0.00010958,2]
[353364724,1739800233116,-500.0,0.00010958,2]
[353364725,1739800233125,-640.81,0.00010958,2]
[353364726,1739800233137,-500.0,0.00010958,2]
[353364727,1739800233147,-500.0,0.00010958,2]
[353364728,1739800233157,-500.0,0.00010958,2]
[353364729,1739800233168,-188.17149262,0.00010958,2]
[353364730,1739800233182,-915.29850738,0.00010958,2]
[353364731,1739800233192,-500.0,0.00010958,2]
[353364732,1739800233202,-500.0,0.00010958,2]
[353364733,1739800233213,-501.18232424,0.00010958,2]
[353364734,1739800233222,-55.25744026,0.00010958,2]
[353364812,1739800238010,-444.74255974,0.00010958,2]
[353364815,1739800238020,-500.0,0.00010958,2]
[353364818,1739800238029,-500.0,0.00010958,2]
[353364820,1739800238038,-1336.23,0.00010958,2]
[353364821,1739800238048,-500.0,0.00010958,2]
[353364823,1739800238057,-500.0,0.00010958,2]
[353364825,1739800238067,-500.0,0.00010958,2]
[353364827,1739800238076,-500.0,0.00010958,2]
[353364829,1739800238086,-500.0,0.00010958,2]
[353364831,1739800238095,-500.0,0.00010958,2]
[353364832,1739800238104,-500.0,0.00010958,2]
[353364834,1739800238113,-500.0,0.00010958,2]
[353364836,1739800238123,-500.0,0.00010958,2]
[353364838,1739800238132,-500.0,0.00010958,2]
[353364839,1739800238141,-500.0,0.00010958,2]
[353364840,1739800238150,-500.0,0.00010958,2]
[353364842,1739800238159,-500.0,0.00010958,2]
[353364844,1739800238169,-500.0,0.00010958,2]
[353364845,1739800238179,-500.0,0.00010958,2]
[353364846,1739800238188,-645.63831732,0.00011,2]
[353364847,1739800238198,-237.13,0.00011041,2]
[353364848,1739800238206,-216.2,0.00011041,2]
[353364849,1739800238216,-273.5,0.00011041,2]
[353364850,1739800238225,-163.05,0.00011041,2]
[353364851,1739800238235,-384.71000024,0.00011041,2]
[353364852,1739800238244,-500.0,0.00011041,2]
[353364853,1739800238254,-500.0,0.00011041,2]
[353364854,1739800238263,-500.0,0.00011041,2]
[353364855,1739800238273,-500.0,0.00011041,2]
[353364856,1739800238283,-182.29,0.00011041,2]
[353364857,1739800238292,-190.65,0.00011041,2]
[353364858,1739800238301,-198.76,0.00011041,2]
[353364859,1739800238311,-500.0,0.00011041,2]
[353364860,1739800238320,-504.46,0.00011041,2]
[353364861,1739800238330,-500.0,0.00011041,2]
[353364862,1739800238339,-500.0,0.00011041,2]
[353364863,1739800238352,-500.0,0.00011041,2]
[353364864,1739800238361,-500.0,0.00011041,2]
[353364865,1739800238371,-500.0,0.00011041,2]
[353364866,1739800238380,-500.0,0.00011041,2]
[353364867,1739800238389,-500.0,0.00011041,2]
[353364868,1739800238399,-500.0,0.00011041,2]
[353364869,1739800238408,-282.0,0.00011041,2]
[353364870,1739800238418,-500.0,0.00011041,2]
[353364871,1739800238427,-500.0,0.00011041,2]
[353364872,1739800238436,-243.07,0.00011041,2]
[353364873,1739800238445,-500.0,0.00011041,2]
[353364874,1739800238454,-500.0,0.00011041,2]
[353364875,1739800238463,-243.5,0.00011041,2]
[353364876,1739800238473,-595.52,0.00011041,2]
[353364877,1739800238486,-523.83,0.00011041,2]
[353364878,1739800238495,-989.94,0.00011041,2]
[353364879,1739800238504,-500.0,0.00011041,2]
[353364880,1739800238515,-500.0,0.00011041,2]
[353364881,1739800238524,-269.66,0.00011041,2]
[353364882,1739800238535,-500.0,0.00011041,2]
[353364883,1739800238546,-500.0,0.00011041,2]
[353364884,1739800238556,-500.0,0.00011041,2]
[353364885,1739800238566,-267.44,0.00011041,2]
[353364886,1739800238576,-500.0,0.00011041,2]
[353364887,1739800238585,-500.0,0.00011041,2]
[353364888,1739800238594,-500.0,0.00011041,2]
[353364889,1739800238604,-500.0,0.00011041,2]
[353364890,1739800238614,-500.0,0.00011041,2]
[353364891,1739800238624,-640.81,0.00011041,2]
[353364892,1739800238633,-500.0,0.00011041,2]
[353364893,1739800238643,-505.64,0.00011041,2]
[353364894,1739800238653,-500.0,0.00011041,2]
[353364895,1739800238663,-1103.47,0.00011041,2]
[353364896,1739800238672,-500.0,0.00011041,2]
[353364897,1739800238681,-500.0,0.00011041,2]
[353364898,1739800238691,-500.0,0.00011041,2]
[353364899,1739800238700,-500.0,0.00011041,2]
[353364900,1739800238709,-500.0,0.00011041,2]
[353364901,1739800238823,-1336.23,0.00011041,2]
[353364902,1739800238833,-500.0,0.00011041,2]
[353364903,1739800238843,-500.0,0.00011041,2]
[353364904,1739800238853,-500.0,0.00011041,2]
[353364905,1739800238863,-500.0,0.00011041,2]
[353364906,1739800238872,-500.0,0.00011041,2]
[353364907,1739800238881,-264.21,0.00011041,2]
[353364908,1739800238891,-157.42,0.00011041,2]
[353364909,1739800238901,-500.0,0.00011041,2]
[353364910,1739800238910,-317.89,0.00011041,2]
[353364911,1739800238922,-500.0,0.00011122,2]
[353364912,1739800238931,-500.0,0.00011122,2]
[353364913,1739800238942,-450.55,0.00011123,2]
[353364914,1739800238951,-500.0,0.00011123,2]
[353364915,1739800238960,-500.0,0.00011123,2]
[353364916,1739800238969,-165.59,0.00011123,2]
[353364917,1739800238978,-308.01,0.00011123,2]
[353364918,1739800238987,-500.0,0.00011123,2]
[353364919,1739800238998,-500.0,0.00011123,2]
[353364920,1739800239008,-500.0,0.00011123,2]
[353364921,1739800239018,-500.0,0.00011123,2]
[353364922,1739800239028,-221.15,0.00011123,2]
[353364923,1739800239037,-431.75,0.00011123,2]
[353364924,1739800239047,-500.0,0.00011123,2]
[353364925,1739800239058,-595.52,0.00011123,2]
[353364926,1739800239068,-989.94,0.00011123,2]
[353364927,1739800239078,-500.0,0.00011123,2]
[353364928,1739800239088,-500.0,0.00011123,2]
[353364929,1739800239097,-500.0,0.00011123,2]
[353364930,1739800239107,-500.0,0.00011123,2]
[353364931,1739800239116,-549.28,0.00011123,2]
[353364932,1739800239125,-500.0,0.00011123,2]
[353364933,1739800239134,-500.0,0.00011123,2]
[353364934,1739800239143,-500.0,0.00011123,2]
[353364935,1739800239153,-500.0,0.00011123,2]
[353364936,1739800239162,-640.81,0.00011123,2]
[353364937,1739800239172,-500.0,0.00011123,2]
[353364938,1739800239182,-500.0,0.00011123,2]
[353364939,1739800239191,-1103.47,0.00011123,2]
[353364940,1739800239201,-271.54,0.00011123,2]
[353364941,1739800239210,-500.0,0.00011123,2]
[353364942,1739800239220,-500.0,0.00011123,2]
[353364943,1739800239229,-500.0,0.00011123,2]
[353364944,1739800239238,-500.0,0.00011123,2]
[353364945,1739800239248,-1336.23,0.00011123,2]
[353364946,1739800239257,-500.0,0.00011123,2]
[353364947,1739800239266,-639.95,0.00011123,2]
[353364948,1739800239276,-500.0,0.00011123,2]
[353364949,1739800239285,-500.0,0.00011123,2]
[353364950,1739800239295,-500.0,0.00011123,2]
[353364951,1739800239304,-500.0,0.00011123,2]
[353364952,1739800239314,-630.69117156,0.00011203,2]
[353364953,1739800239323,-500.0,0.00011203,2]
[353364954,1739800239332,-500.0,0.00011203,2]
[353364955,1739800239342,-454.84183038,0.00011203,2]
[353364956,1739800239352,-160.86666227,0.00011203,2]
[353364957,1739800239361,-500.0,0.00011203,2]
[353364958,1739800239371,-500.0,0.00011203,2]
[353364959,1739800239380,-500.0,0.00011203,2]
[353364960,1739800239390,-500.0,0.00011203,2]
[353364961,1739800239399,-500.0,0.00011203,2]
[353364962,1739800239410,-500.0,0.00011203,2]
[353364963,1739800239419,-500.0,0.00011203,2]
[353364964,1739800239429,-500.0,0.00011203,2]
[353364965,1739800239439,-500.0,0.00011203,2]
[353364966,1739800239448,-500.0,0.00011203,2]
[353364967,1739800239458,-500.0,0.00011203,2]
[353364968,1739800239467,-291.80128598,0.00011203,2]
[353364969,1739800239478,-500.0,0.00011203,2]
[353364970,1739800239491,-390.24,0.00011205,2]
[353364971,1739800239500,-529.99,0.00011205,2]
[353364972,1739800239510,-462.22532813,0.00011205,2]
[353364973,1739800239519,-500.0,0.00011205,2]
[353364974,1739800239530,-499.16171927,0.00011205,2]
[353364975,1739800239539,-318.23,0.00011205,2]
[353364976,1739800239548,-481.07,0.00011205,2]
[353364977,1739800239557,-595.52,0.00011205,2]
[353364978,1739800239569,-989.94,0.00011205,2]
[353364979,1739800239578,-478.86,0.00011205,2]
[353364980,1739800239588,-588.4,0.00011205,2]
[353364981,1739800239597,-500.0,0.00011205,2]
[353364982,1739800239606,-500.0,0.00011205,2]
[353364983,1739800239616,-244.09,0.00011205,2]
[353364984,1739800239625,-500.0,0.00011205,2]
[353364985,1739800239635,-640.81,0.00011205,2]
[353364986,1739800239645,-500.0,0.00011205,2]
[353364987,1739800239654,-1103.47,0.00011205,2]
[353364988,1739800239664,-500.0,0.00011205,2]
[353364989,1739800239673,-500.0,0.00011205,2]
[353364990,1739800239683,-500.0,0.00011205,2]
[353364991,1739800239693,-1336.23,0.00011205,2]
[353364992,1739800239702,-217.46,0.00011205,2]
[353364993,1739800239712,-500.0,0.00011205,2]
[353364994,1739800239721,-500.0,0.00011205,2]
[353364995,1739800239730,-500.0,0.00011205,2]
[353364996,1739800239739,-500.0,0.00011205,2]
[353364997,1739800239749,-543.93389853,0.00011285,2]
[353364998,1739800239759,-17691.58408748,0.00011286,5]
[353364999,1739800239790,-1847.30529547,0.00011285,5]
[353365028,1739800240711,-17222.62112052,0.00011285,5]
[353365029,1739800240728,-5019.08636061,0.00011285,5]
[353365049,1739800243198,-6920.94858669,0.00011285,5]
[353365107,1739800246084,-1505.387035,0.00011285,5]
[353365111,1739800246150,-1219.30001238,0.00011285,5]
[353365113,1739800246159,-4298.23943094,0.00011286,5]
[353365116,1739800246170,-11909.31818747,0.00011286,5]
[353365118,1739800246181,-5865.05239013,0.00011286,5]
[353365120,1739800246193,-4041.52758607,0.00011286,5]
[353365123,1739800246213,-1151.0,0.00011286,5]
[353365237,1739800867115,174.05920028,5e-05,15]
[353365238,1739800894887,-151.0,8.943e-05,2]
[353365239,1739800894916,-200.0,8.943e-05,2]
[353365240,1739800894944,-197.52758985,9.713e-05,2]
[353365241,1739800894972,-197.52758985,9.811e-05,2]
[353365242,1739800895001,-300.0,9.909e-05,2]
[353365243,1739800895028,-197.52758985,9.91e-05,2]
[353365244,1739800895058,-24900.0,9.91e-05,2]
[353365245,1739800895086,-204.6406012,0.0001001,2]
[353365246,1739800895113,-400.0,0.00010685,2]
[353365247,1739800895140,-420.0,0.000109,2]
[353365248,1739800895168,-500.0,0.00010957,2]
[353365249,1739800895196,-500.0,0.00010957,2]
[353365250,1739800895224,-488.52500316,0.00010957,2]
[353365251,1739800895251,-500.0,0.00010957,2]
[353365252,1739800895280,-500.0,0.00010957,2]
[353365253,1739800895309,-500.0,0.00010957,2]
[353365254,1739800895337,-500.0,0.00010957,2]
[353365255,1739800895365,-500.0,0.00010957,2]
[353365256,1739800895395,-500.0,0.00010957,2]
[353365257,1739800895423,-500.0,0.00010957,2]
[353365258,1739800895453,-500.0,0.00010957,2]
[353365259,1739800895481,-503.07686475,0.00010957,2]
[353365260,1739800895510,-419.49814918,0.00010957,2]
[353365261,1739800895539,-507.15308487,0.00010957,2]
[353365262,1739800895569,-500.0,0.00010957,2]
[353365263,1739800895600,-500.0,0.00010957,2]
[353365264,1739800895630,-200.49709943,0.00010957,2]
[353365265,1739800895661,-500.0,0.00010957,2]
[353365266,1739800895694,-500.0,0.00010957,2]
[353365267,1739800895727,-500.0,0.00010958,2]
[353365268,1739800895757,-577.17,0.00010958,2]
[353365269,1739800895786,-500.0,0.00010958,2]
[353365270,1739800895816,-500.0,0.00010958,2]
[353365271,1739800895845,-500.0,0.00010958,2]
[353365272,1739800895873,-503.13017325,0.00010958,2]
[353365273,1739800895901,-501.99275315,0.00010958,2]
[353365274,1739800895929,-501.8651429,0.00010958,2]
[353365275,1739800896066,-501.67109497,0.00010958,2]
[353365276,1739800896095,-594.66375078,0.00010958,2]
[353365277,1739800896125,-504.17019247,0.00010958,2]
[353365278,1739800896152,-501.80598305,0.00010958,2]
[353365279,1739800896178,-544.03,0.00010958,2]
[353365280,1739800896205,-501.8414813,0.00010958,2]
[353365281,1739800896231,-502.7775335,0.00010958,2]
[353365282,1739800896258,-203.68,0.00010958,2]
[353365283,1739800896286,-419.88,0.00010958,2]
[353365284,1739800896313,-165.7094089,0.00010958,2]
[353365285,1739800896339,-500.0,0.00010958,2]
[353365286,1739800896366,-452.49852936,0.00010958,2]
[353365287,1739800896394,-500.0,0.00010958,2]
[353365288,1739800896422,-500.0,0.00010958,2]
[353365289,1739800896450,-500.0,0.00010958,2]
[353365290,1739800896478,-500.0,0.00010958,2]
[353365291,1739800896505,-500.0,0.00010958,2]
[353365292,1739800896534,-330.27635412,0.00010958,2]
[353365293,1739800896562,-500.0,0.00010958,2]
[353365294,1739800896590,-500.0,0.00010958,2]
[353365295,1739800896618,-500.0,0.00010958,2]
[353365296,1739800896645,-500.0,0.00010958,2]
[353365297,1739800896673,-500.0,0.00010958,2]
[353365298,1739800896703,-500.0,0.00010958,2]
[353365299,1739800896733,-500.0,0.00010958,2]
[353365300,1739800896763,-500.0,0.00010958,2]
[353365301,1739800896795,-500.0,0.00010958,2]
[353365302,1739800896823,-500.0,0.00010958,2]
[353365303,1739800896851,-500.0,0.00010958,2]
[353365304,1739800896878,-500.0,0.00010958,2]
[353365305,1739800896906,-500.0,0.00010958,2]
[353365306,1739800896934,-500.0,0.00010958,2]
[353365307,1739800896962,-500.0,0.00010958,2]
[353365308,1739800896988,-500.0,0.00010958,2]
[353365309,1739800897016,-500.0,0.00010958,2]
[353365310,1739800897044,-500.0,0.00010958,2]
[353365311,1739800897072,-2246.06,0.00010958,2]
[353365312,1739800897099,-500.0,0.00010958,2]
[353365313,1739800897124,-500.0,0.00010958,2]
[353365314,1739800897152,-500.0,0.00010958,2]
[353365315,1739800897180,-500.0,0.00010958,2]
[353365316,1739800897207,-500.0,0.00010958,2]
[353365317,1739800897235,-500.0,0.00010958,2]
[353365318,1739800897262,-500.0,0.00010958,2]
[353365319,1739800897289,-500.0,0.00010958,2]
[353365320,1739800897317,-535.26937447,0.00010958,2]
[353365321,1739800897344,-500.0,0.00010958,2]
[353365322,1739800897370,-500.0,0.00010958,2]
[353365323,1739800897398,-500.0,0.00010958,2]
[353365324,1739800897426,-500.85,0.00010958,2]
[353365325,1739800897457,-500.0,0.00010958,2]
[353365326,1739800897484,-362.72293933,0.00010958,2]
[353365327,1739800897512,-500.0,0.00010958,2]
[353365328,1739800897541,-500.0,0.00010958,2]
[353365329,1739800897570,-863.91,0.00010958,2]
[353365330,1739800897598,-510.03,0.00010958,2]
[353365331,1739800897627,-533.83,0.00010958,2]
[353365332,1739800897656,-500.0,0.00010958,2]
[353365333,1739800897684,-500.0,0.00010958,2]
[353365334,1739800897716,-500.0,0.00010958,2]
[353365335,1739800897743,-500.0,0.00010958,2]
[353365336,1739800897773,-500.0,0.00010958,2]
[353365337,1739800897808,-500.0,0.00010958,2]
[353365338,1739800897837,-500.0,0.00010958,2]
[353365339,1739800897866,-500.0,0.00010958,2]
[353365340,1739800897895,-500.0,0.00010958,2]
[353365341,1739800897922,-471.37753631,0.00010958,2]
[353365342,1739800897949,-599.45,0.00010958,2]
[353365343,1739800897975,-500.0,0.00010958,2]
[353365344,1739800898003,-500.0,0.00010958,2]
[353365345,1739800898032,-514.0,0.00010958,2]
[353365346,1739800898065,-3790.96,0.00010958,2]
[353365347,1739800898094,-1297.48,0.00010958,2]
[353365348,1739800898123,-500.0,0.00010958,2]
[353365349,1739800898156,-599.85,0.00010958,2]
[353365350,1739800898186,-500.0,0.00010958,2]
[353365351,1739800898311,-500.0,0.00010958,2]
[353365352,1739800898340,-500.0,0.00010958,2]
[353365353,1739800898369,-500.0,0.00010958,2]
[353365354,1739800898398,-2050.59,0.00010958,2]
[353365355,1739800898425,-500.0,0.00010958,2]
[353365356,1739800898454,-500.0,0.00010958,2]
[353365357,1739800898483,-500.0,0.00010958,2]
[353365358,1739800898511,-500.0,0.00010958,2]
[353365359,1739800898542,-1201.73,0.00010958,2]
[353365360,1739800898571,-500.0,0.00010958,2]
[353365361,1739800898599,-500.0,0.00010958,2]
[353365362,1739800898629,-500.0,0.00010958,2]
[353365363,1739800898658,-500.0,0.00010958,2]
[353365364,1739800898688,-500.0,0.00010958,2]
[353365365,1739800898721,-500.0,0.00010958,2]
[353365366,1739800898751,-500.0,0.00010958,2]
[353365367,1739800898781,-500.0,0.00010958,2]
[353365368,1739800898810,-500.0,0.00010958,2]
[353365369,1739800898837,-500.0,0.00010958,2]
[353365370,1739800898865,-500.0,0.00010958,2]
[353365371,1739800898895,-500.0,0.00010958,2]
[353365372,1739800898923,-500.0,0.00010958,2]
[353365373,1739800898952,-608.53,0.00010958,2]
[353365374,1739800898980,-500.0,0.00010958,2]
[353365375,1739800899008,-500.0,0.00010958,2]
[353365376,1739800899037,-500.0,0.00010958,2]
[353365377,1739800899064,-500.0,0.00010958,2]
[353365378,1739800899092,-500.0,0.00010958,2]
[353365379,1739800899120,-500.0,0.00010958,2]
[353365380,1739800899147,-500.0,0.00010958,2]
[353365381,1739800899175,-477.99436319,0.00010958,2]
[353365382,1739800899203,-617.02,0.00010958,2]
[353365383,1739800899230,-500.0,0.00010958,2]
[353365384,1739800899257,-500.0,0.00010958,2]
[353365385,1739800899284,-500.0,0.00010958,2]
[353365386,1739800899312,-477.24,0.00010958,2]
[353365387,1739800899340,-500.0,0.00010958,2]
[353365388,1739800899367,-500.0,0.00010958,2]
[353365389,1739800899395,-500.0,0.00010958,2]
[353365390,1739800899423,-500.0,0.00010958,2]
[353365391,1739800899450,-500.0,0.00010958,2]
[353365392,1739800899478,-500.0,0.00010958,2]
[353365393,1739800899506,-500.0,0.00010958,2]
[353365394,1739800899534,-500.0,0.00010958,2]
[353365395,1739800899564,-500.0,0.00010958,2]
[353365396,1739800899592,-500.0,0.00010958,2]
[353365397,1739800899621,-500.0,0.00010958,2]
[353365398,1739800899649,-500.0,0.00010958,2]
[353365399,1739800899677,-500.0,0.00010958,2]
[353365400,1739800899708,-721.51,0.00010958,2]
[353365401,1739800899737,-500.0,0.00010958,2]
[353365402,1739800899765,-548.31147106,0.00010958,2]
[353365403,1739800899798,-705.63,0.00010958,2]
[353365404,1739800899825,-500.0,0.00010958,2]
[353365405,1739800899852,-500.0,0.00010958,2]
[353365406,1739800899878,-500.0,0.00010958,2]
[353365407,1739800899904,-225.86990255,0.00010958,2]
[353365408,1739800899931,-500.0,0.00010958,2]
[353365409,1739800899958,-168.68123368,0.00011023,2]
[353365410,1739800899985,-500.0,0.00011041,2]
[353365411,1739800900012,-462.6,0.00011041,2]
[353365412,1739800900040,-186.36,0.00011041,2]
[353365413,1739800900068,-624.94,0.00011041,2]
[353365414,1739800900098,-249.42,0.00011041,2]
[353365415,1739800900126,-271.01,0.00011041,2]
[353365416,1739800900152,-212.11,0.00011041,2]
[353365417,1739800900179,-500.0,0.00011041,2]
[353365418,1739800900205,-500.0,0.00011041,2]
[353365419,1739800900232,-500.0,0.00011041,2]
[353365420,1739800900261,-2246.06,0.00011041,2]
[353365421,1739800900290,-237.59,0.00011041,2]
[353365422,1739800900317,-500.0,0.00011041,2]
[353365423,1739800900344,-500.0,0.00011041,2]
[353365424,1739800900372,-500.0,0.00011041,2]
[353365425,1739800900491,-588.63,0.00011041,2]
[353365426,1739800900520,-212.53,0.00011041,2]
[353365427,1739800900553,-500.0,0.00011041,2]
[353365428,1739800900581,-500.0,0.00011041,2]
[353365429,1739800900611,-500.0,0.00011041,2]
[353365430,1739800900640,-500.0,0.00011041,2]
[353365431,1739800900670,-863.91,0.00011041,2]
[353365432,1739800900698,-510.03,0.00011041,2]
[353365433,1739800900731,-500.0,0.00011041,2]
[353365434,1739800900761,-500.0,0.00011041,2]
[353365435,1739800900792,-500.0,0.00011041,2]
[353365436,1739800900820,-203.75,0.00011041,2]
[353365437,1739800900850,-283.81,0.00011041,2]
[353365438,1739800900879,-500.0,0.00011041,2]
[353365439,1739800900911,-514.0,0.00011041,2]
[353365440,1739800900941,-3790.96,0.00011041,2]
[353365441,1739800900971,-1297.48,0.00011041,2]
[353365442,1739800901001,-500.0,0.00011041,2]
[353365443,1739800901030,-500.0,0.00011041,2]
[353365444,1739800901060,-500.0,0.00011041,2]
[353365445,1739800901089,-500.0,0.00011041,2]
[353365446,1739800901120,-2050.59,0.00011041,2]
[353365447,1739800901149,-500.0,0.00011041,2]
[353365448,1739800901178,-500.0,0.00011041,2]
[353365449,1739800901208,-500.0,0.00011041,2]
[353365450,1739800901238,-1201.73,0.00011041,2]
[353365451,1739800901266,-412.5,0.00011041,2]
[353365452,1739800901296,-500.0,0.00011041,2]
[353365453,1739800901324,-500.0,0.00011041,2]
[353365454,1739800901354,-500.0,0.00011041,2]
[353365455,1739800901383,-500.0,0.00011041,2]
[353365456,1739800901418,-321.42,0.00011041,2]
[353365457,1739800901446,-500.0,0.00011041,2]
[353365458,1739800901476,-500.0,0.00011041,2]
[353365459,1739800901505,-151.0,0.00011041,2]
[353365460,1739800901536,-500.0,0.00011041,2]
[353365461,1739800901569,-500.0,0.00011041,2]
[353365462,1739800901611,-500.0,0.00011041,2]
[353365463,1739800901647,-213.09,0.00011041,2]
[353365464,1739800901687,-721.51,0.00011041,2]
[353365465,1739800901737,-500.0,0.00011041,2]
[353365466,1739800901774,-705.63,0.00011041,2]
[353365467,1739800901808,-151.0,0.00011041,2]
[353365468,1739800901847,-500.0,0.00011041,2]
[353365469,1739800901886,-292.56,0.00011041,2]
[353365470,1739800901924,-193.34583979,0.00011122,2]
[353365471,1739800901960,-500.0,0.00011122,2]
[353365472,1739800901996,-442.58094554,0.00011122,2]
[353365473,1739800902031,-500.0,0.00011122,2]
[353365474,1739800902068,-500.0,0.00011122,2]
[353365475,1739800902106,-173.42,0.00011123,2]
[353365476,1739800902141,-508.43,0.00011123,2]
[353365477,1739800902174,-500.0,0.00011123,2]
[353365478,1739800902214,-500.0,0.00011123,2]
[353365479,1739800902248,-2246.06,0.00011123,2]
[353365480,1739800902279,-213.58,0.00011123,2]
[353365481,1739800902313,-500.0,0.00011123,2]
[353365482,1739800902346,-645.9,0.00011123,2]
[353365483,1739800902385,-500.0,0.00011123,2]
[353365484,1739800902419,-500.0,0.00011123,2]
[353365485,1739800902453,-496.48,0.00011123,2]
[353365486,1739800902494,-863.91,0.00011123,2]
[353365487,1739800902530,-510.03,0.00011123,2]
[353365488,1739800902564,-433.96,0.00011123,2]
[353365489,1739800902597,-500.0,0.00011123,2]
[353365490,1739800902631,-500.0,0.00011123,2]
[353365491,1739800902665,-542.87,0.00011123,2]
[353365492,1739800902699,-514.0,0.00011123,2]
[353365493,1739800902738,-3790.96,0.00011123,2]
[353365494,1739800902776,-1297.48,0.00011123,2]
[353365495,1739800902811,-234.7,0.00011123,2]
[353365496,1739800902846,-500.0,0.00011123,2]
[353365497,1739800903011,-500.0,0.00011123,2]
[353365498,1739800903042,-500.0,0.00011123,2]
[353365499,1739800903072,-2050.59,0.00011123,2]
[353365500,1739800903102,-500.0,0.00011123,2]
[353365501,1739800903132,-170.27,0.00011123,2]
[353365502,1739800903161,-500.0,0.00011123,2]
[353365503,1739800903192,-1201.73,0.00011123,2]
[353365504,1739800903220,-151.0,0.00011123,2]
[353365505,1739800903249,-500.0,0.00011123,2]
[353365506,1739800903280,-500.0,0.00011123,2]
[353365507,1739800903312,-500.0,0.00011123,2]
[353365508,1739800903342,-500.0,0.00011123,2]
[353365509,1739800903371,-211.53,0.00011123,2]
[353365510,1739800903401,-151.0,0.00011123,2]
[353365511,1739800903430,-153.72,0.00011123,2]
[353365512,1739800903459,-500.0,0.00011123,2]
[353365513,1739800903488,-550.15,0.00011123,2]
[353365514,1739800903518,-721.51,0.00011123,2]
[353365515,1739800903547,-235.46,0.00011123,2]
[353365516,1739800903574,-151.0,0.00011123,2]
[353365517,1739800903603,-705.63,0.00011123,2]
[353365518,1739800903632,-500.0,0.00011123,2]
[353365519,1739800903660,-338.093176,0.00011204,2]
[353365520,1739800903687,-338.093176,0.00011204,2]
[353365521,1739800903717,-151.0,0.00011204,2]
[353365522,1739800903747,-500.0,0.00011205,2]
[353365523,1739800903776,-500.0,0.00011205,2]
[353365524,1739800903811,-2246.06,0.00011205,2]
[353365525,1739800903839,-491.46,0.00011205,2]
[353365526,1739800903867,-500.0,0.00011205,2]
[353365527,1739800903896,-500.0,0.00011205,2]
[353365528,1739800903925,-863.91,0.00011205,2]
[353365529,1739800903954,-510.03,0.00011205,2]
[353365530,1739800903982,-172.63,0.00011205,2]
[353365531,1739800904012,-466.29,0.00011205,2]
[353365532,1739800904041,-514.0,0.00011205,2]
[353365533,1739800904071,-3790.96,0.00011205,2]
[353365534,1739800904101,-1297.48,0.00011205,2]
[353365535,1739800904130,-500.0,0.00011205,2]
[353365536,1739800904159,-500.0,0.00011205,2]